fUSD/lending_fUSD_20250112
["ID","MTS","AMOUNT","RATE_DAILY","PERIOD"]
[348634415,1736691069603,-906.07,0.00011613,2]
[348634416,1736691069612,-846.45,0.00011613,2]
[348634417,1736691069622,-500.0,0.00011613,2]
[348634418,1736691069632,-500.0,0.00011613,2]
[348634419,1736691069642,-730.46,0.00011613,2]
[348634420,1736691069651,-512.88,0.00011613,2]
[348634421,1736691069661,-500.0,0.00011613,2]
[348634422,1736691069671,-780.29,0.00011613,2]
[348634423,1736691069681,-739.33,0.00011613,2]
[348634424,1736691069691,-513.5,0.00011613,2]
[348634425,1736691069700,-500.0,0.00011613,2]
[348634426,1736691069709,-2891.62,0.00011613,2]
[348634427,1736691069718,-539.77,0.00011613,2]
[348634428,1736691069727,-945.58,0.00011613,2]
[348634429,1736691069738,-556.11,0.00011613,2]
[348634430,1736691069747,-1234.54,0.00011613,2]
[348634431,1736691069757,-500.0,0.00011613,2]
[348634432,1736691069767,-954.47,0.00011613,2]
[348634433,1736691069776,-2764.81,0.00011613,2]
[348634434,1736691069785,-583.26,0.00011613,2]
[348634435,1736691069795,-881.07,0.00011613,2]
[348634436,1736691069805,-639.94,0.00011613,2]
[348634437,1736691069815,-541.38,0.00011613,2]
[348634438,1736691069824,-1156.13,0.00011613,2]
[348634439,1736691069833,-9249.95,0.00011613,2]
[348634440,1736691069842,-799.31,0.00011613,2]
[348634441,1736691069851,-500.0,0.00011613,2]
[348634442,1736691069861,-939.49,0.00011613,2]
[348634443,1736691069871,-398.90487028,0.00011613,2]
[348634444,1736691069879,-573.6,0.00011613,2]
[348634445,1736691069889,-970.72,0.00011613,2]
[348634446,1736691069898,-502.42,0.00011613,2]
[348634447,1736691069909,-4976.97,0.00011613,2]
[348634448,1736691069918,-500.0,0.00011613,2]
[348634449,1736691069927,-616.63,0.00011613,2]
[348634450,1736691069937,-500.0,0.00011613,2]
[348634451,1736691069947,-1304.87,0.00011613,2]
[348634452,1736691069956,-1044.07,0.00011613,2]
[348634453,1736691069966,-1010.03,0.00011613,2]
[348634454,1736691069975,-525.89,0.00011613,2]
[348634455,1736691069986,-2557.54,0.00011613,2]
[348634456,1736691069995,-999.61,0.00011613,2]
[348634457,1736691070004,-600.68,0.00011613,2]
[348634458,1736691070014,-500.0,0.00011613,2]
[348634459,1736691070024,-500.0,0.00011613,2]
[348634460,1736691070033,-500.0,0.00011613,2]
[348634461,1736691070042,-500.0,0.00011613,2]
[348634462,1736691070052,-3438.24,0.00011613,2]
[348634463,1736691070061,-655.87,0.00011613,2]
[348634464,1736691070070,-2404.43,0.00011613,2]
[348634465,1736691070079,-500.0,0.00011613,2]
[348634466,1736691070091,-500.0,0.00011613,2]
[348634467,1736691070101,-1014.52,0.00011613,2]
[348634468,1736691070111,-1543.51,0.00011613,2]
[348634469,1736691070120,-500.0,0.00011613,2]
[348634470,1736691070130,-714.21,0.00011613,2]
[348634471,1736691070140,-500.0,0.00011613,2]
[348634472,1736691070150,-793.41,0.00011613,2]
[348634473,1736691070159,-643.1,0.00011613,2]
[348634474,1736691070168,-1105.81,0.00011613,2]
[348634475,1736691070178,-584.24,0.00011613,2]
[348634476,1736691070187,-500.0,0.00011613,2]
[348634477,1736691070196,-528.87,0.00011613,2]
[348634478,1736691070207,-500.0,0.00011613,2]
[348634479,1736691070216,-3597.96,0.00011613,2]
[348634480,1736691070226,-507.23,0.00011613,2]
[348634481,1736691070236,-564.53,0.00011613,2]
[348634482,1736691070245,-2317.69,0.00011613,2]
[348634483,1736691070255,-500.0,0.00011613,2]
[348634484,1736691070264,-500.0,0.00011613,2]
[348634485,1736691070273,-500.0,0.00011613,2]
[348634486,1736691070282,-500.0,0.00011613,2]
[348634487,1736691070291,-505.15,0.00011613,2]
[348634488,1736691070302,-457.9884251,0.00011613,2]
[348634489,1736691070312,-500.0,0.00011613,2]
[348634490,1736691070321,-1833.34,0.00011613,2]
[348634491,1736691070330,-749.03,0.00011613,2]
[348634492,1736691070339,-500.0,0.00011613,2]
[348634493,1736691070348,-539.28,0.00011613,2]
[348634494,1736691070357,-500.0,0.00011613,2]
[348634495,1736691070367,-905.76,0.00011613,2]
[348634496,1736691070377,-717.57,0.00011613,2]
[348634497,1736691070386,-500.0,0.00011613,2]
[348634498,1736691070397,-500.0,0.00011613,2]
[348634499,1736691070407,-949.36,0.00011613,2]
[348634500,1736691070416,-893.69,0.00011613,2]
[348634501,1736691070426,-500.0,0.00011614,2]
[348634502,1736691070436,-500.0,0.00011614,2]
[348634503,1736691070446,-500.0,0.00011614,2]
[348634504,1736691070455,-500.0,0.00011614,2]
[348634505,1736691070464,-500.0,0.00011614,2]
[348634506,1736691070475,-500.0,0.00011614,2]
[348634507,1736691070484,-641.01,0.00011614,2]
[348634508,1736691070494,-695.45,0.00011614,2]
[348634509,1736691070503,-500.0,0.00011614,2]
[348634510,1736691070514,-500.0,0.00011614,2]
[348634511,1736691070523,-500.0,0.00011614,2]
[348634512,1736691070532,-500.0,0.00011614,2]
[348634513,1736691070541,-164.74548102,0.00011614,2]
[348634514,1736691070550,-500.0,0.00011614,2]
[348634515,1736691070563,-675.02,0.00011614,2]
[348634516,1736691070573,-500.0,0.00011614,2]
[348634517,1736691070582,-627.98,0.00011614,2]
[348634518,1736691070591,-500.0,0.00011614,2]
[348634519,1736691070601,-511.85,0.00011614,2]
[348634520,1736691070610,-740.19,0.00011614,2]
[348634521,1736691070619,-500.0,0.00011614,2]
[348634522,1736691070629,-500.0,0.00011614,2]
[348634523,1736691070639,-500.0,0.00011614,2]
[348634524,1736691070649,-800.91,0.00011614,2]
[348634525,1736691070658,-500.0,0.00011614,2]
[348634526,1736691070667,-600.8,0.00011614,2]
[348634527,1736691070677,-567.6,0.00011614,2]
[348634528,1736691070687,-823.24,0.00011614,2]
[348634529,1736691070696,-500.0,0.00011614,2]
[348634530,1736691070705,-500.0,0.00011614,2]
[348634531,1736691070715,-500.0,0.00011614,2]
[348634532,1736691070724,-550.02,0.00011614,2]
[348634533,1736691070733,-500.0,0.00011614,2]
[348634534,1736691070743,-500.0,0.00011614,2]
[348634535,1736691070752,-500.0,0.00011614,2]
[348634536,1736691070762,-1049.98,0.00011614,2]
[348634537,1736691070771,-1472.39,0.00011614,2]
[348634538,1736691070781,-500.0,0.00011614,2]
[348634539,1736691070792,-625.07,0.00011614,2]
[348634540,1736691070801,-952.29,0.00011614,2]
[348634541,1736691070811,-3133.59,0.00011614,2]
[348634542,1736691070821,-500.0,0.00011614,2]
[348634543,1736691070830,-500.0,0.00011614,2]
[348634544,1736691070839,-1007.73,0.00011614,2]
[348634545,1736691070848,-500.0,0.00011614,2]
[348634546,1736691070857,-500.0,0.00011614,2]
[348634547,1736691070866,-765.53,0.00011614,2]
[348634548,1736691070876,-500.0,0.00011614,2]
[348634549,1736691070886,-1439.72,0.00011614,2]
[348634550,1736691070895,-500.0,0.00011614,2]
[348634551,1736691070906,-500.0,0.00011614,2]
[348634552,1736691070916,-3500.11,0.00011614,2]
[348634553,1736691070925,-500.0,0.00011614,2]
[348634554,1736691070935,-500.0,0.00011614,2]
[348634555,1736691070945,-545.23,0.00011614,2]
[348634556,1736691070954,-1386.0,0.00011614,2]
[348634557,1736691070964,-1100.68,0.00011614,2]
[348634558,1736691070974,-3612.69,0.00011614,2]
[348634559,1736691070984,-953.71,0.00011614,2]
[348634560,1736691070994,-1752.99,0.00011614,2]
[348634561,1736691071003,-2546.32,0.00011614,2]
[348634562,1736691071012,-1391.19,0.00011614,2]
[348634563,1736691071021,-1480.46,0.00011614,2]
[348634564,1736691071031,-1939.35,0.00011614,2]
[348634565,1736691071039,-1410.54,0.00011614,2]
[348634566,1736691071049,-2017.62,0.00011618,2]
[348634567,1736691071058,-1544.08,0.00011618,2]
[348634568,1736691071068,-654.764347,0.00011618,2]
[348634569,1736691071077,-747.840652,0.00011618,2]
[348634570,1736691071086,-3750.08,0.00011618,2]
[348634571,1736691071095,-1159.16,0.00011618,2]
[348634572,1736691071105,-717.74,0.00011618,2]
[348634573,1736691071114,-648.2,0.00011618,2]
[348634574,1736691071123,-500.0,0.00011618,2]
[348634575,1736691071132,-3187.32,0.00011618,2]
[348634576,1736691071141,-500.0,0.00011618,2]
[348634577,1736691071150,-1007.96,0.00011618,2]
[348634578,1736691071159,-2450.04,0.00011618,2]
[348634579,1736691071168,-647.5,0.00011618,2]
[348634580,1736691071177,-1059.63,0.00011618,2]
[348634581,1736691071186,-919.57,0.00011618,2]
[348634582,1736691071195,-1231.32,0.00011618,2]
[348634583,1736691071204,-875.01,0.00011618,2]
[348634584,1736691071213,-1382.6,0.00011618,2]
[348634585,1736691071223,-1644.57,0.00011618,2]
[348634586,1736691071233,-500.0,0.00011618,2]
[348634587,1736691071242,-597.27,0.00011618,2]
[348634588,1736691071251,-500.0,0.00011618,2]
[348634589,1736691071261,-1143.35,0.00011618,2]
[348634590,1736691071270,-1153.86,0.00011618,2]
[348634591,1736691071279,-791.83,0.00011619,2]
[348634592,1736691071288,-818.19,0.00011619,2]
[348634593,1736691071297,-1218.42,0.00011619,2]
[348634594,1736691071307,-2421.42,0.00011619,2]
[348634595,1736691071316,-1611.75,0.00011619,2]
[348634596,1736691071325,-500.0,0.00011619,2]
[348634597,1736691071334,-1012.53,0.00011619,2]
[348634598,1736691071477,-2492.77,0.00011619,2]
[348634599,1736691071488,-6816.53,0.00011619,2]
[348634600,1736691071497,-1300.44,0.00011619,2]
[348634601,1736691071506,-1800.8,0.00011619,2]
[348634602,1736691071516,-1136.46,0.00011619,2]
[348634603,1736691071527,-500.0,0.00011619,2]
[348634604,1736691071539,-1000.0,0.00011643,2]
[348634605,1736691071549,-1085.74,0.00011643,2]
[348634606,1736691071560,-500.0,0.00011643,2]
[348634607,1736691071570,-2525.27,0.00011643,2]
[348634608,1736691071580,-2170.44,0.00011643,2]
[348634609,1736691071592,-2801.17436902,0.00011659,2]
[348634610,1736691071603,-49291.51916932,0.0001168,2]
[348634611,1736691071613,-5056.11647,0.00011685,2]
[348634612,1736691071624,-55971.8456,0.000117,2]
[348634613,1736691071635,-2801.17436902,0.00011728,2]
[348634614,1736691071646,-416.0,0.00011795,2]
[348634615,1736691071656,-2801.17436902,0.00011797,2]
[348634616,1736691071665,-14802.10752542,0.00011826,4]
[348634617,1736691071956,-732.542,0.00011826,4]
[348634618,1736691071967,-1190.67278887,0.00011826,4]
[348634619,1736691071979,-468.649,0.00011826,4]
[348634620,1736691072493,-500.0,9.969e-05,2]
[348634621,1736691072502,-1891.228675,9.974e-05,2]
[348634622,1736691072524,-750.711325,9.974e-05,2]
[348634623,1736691072534,-530.39493526,0.00010248,2]
[348634624,1736691072546,-2111.54506474,0.00010248,2]
[348634625,1736691072558,-646.37978222,0.00010522,2]
[348634626,1736691072584,-1206.82815994,0.00010522,2]
[348634627,1736691072597,-788.73205784,0.00010522,2]
[348634628,1736691072606,-149.05794216,0.00010796,2]
[348634629,1736691072618,-683.56205784,0.00010796,2]
[348634630,1736691072628,-951.16841981,0.00010796,2]
[348634631,1736691072639,-1690.77158019,0.00010796,2]
[348634632,1736691072649,-294.04487433,0.0001107,2]
[348634633,1736691072672,-538.57512567,0.0001107,2]
[348634634,1736691072682,-832.62,0.00011344,2]
[348634635,1736691072691,-832.62,0.00011618,2]
[348634636,1736691072700,-45055.43868571,0.00011826,4]
[348634637,1736691072709,-2532.26,0.00011826,4]
[348634638,1736691072719,-18336.33732192,0.00011826,4]
[348634639,1736691072730,-2688.88036751,0.00011826,4]
[348634640,1736691072741,-6111.09231057,0.00011826,4]
[348634641,1736691072751,-1005.82332192,0.00011826,4]
[348634643,1736691505224,937.84,8.219e-05,2]
[348634645,1736691795412,3395.0,0.00023,120]
[348634646,1736691899674,-949.92,8.948e-05,2]
[348634647,1736691899697,-229.45,8.957e-05,2]
[348634648,1736691899719,-2108.85987257,8.969e-05,2]
[348634649,1736691904525,-10000.0,8.969e-05,2]
[348634650,1736691910775,-10000.0,8.969e-05,2]
[348634651,1736691924253,-1791.14012743,8.969e-05,2]
[348634657,1736692124639,250.0,8.951e-05,2]
[348634669,1736692232260,-1000.0,8.973e-05,2]
[348634670,1736692232269,-250.0,8.996e-05,2]
[348634671,1736692232279,-399.98,9.008e-05,2]
[348634672,1736692232288,-353.47,9.037e-05,2]
[348634673,1736692232298,-168.03,9.227e-05,2]
[348634674,1736692232307,-2500.0,9.335e-05,2]
[348634675,1736692232317,-2500.0,9.335e-05,2]
[348634676,1736692232328,-164.79,9.568e-05,2]
[348634677,1736692232337,-206.27,9.569e-05,2]
[348634678,1736692232347,-2061.31260032,9.764e-05,2]
[348634679,1736692232356,-150.99,9.764e-05,2]
[348634680,1736692232366,-602.21,9.764e-05,2]
[348634681,1736692232375,-150.0,9.768e-05,2]
[348634682,1736692232385,-6793.6521,9.769e-05,2]
[348634683,1736692232394,-2035.7699,9.769e-05,2]
[348634684,1736692232403,-515.13,9.769e-05,2]
[348634685,1736692232413,-9427.7853,9.769e-05,2]
[348634686,1736692232422,-1043.0945,9.769e-05,2]
[348634687,1736692232431,-311.5978,9.769e-05,2]
[348634688,1736692232442,-16690.1235,9.869e-05,2]
[348634689,1736692232451,-1184.4145,9.869e-05,2]
[348634690,1736692232460,-60529.6121,9.869e-05,2]
[348634691,1736692232469,-5000.0,9.874e-05,2]
[348634692,1736692232479,-3217.849844,9.9e-05,2]
[348634693,1736692232491,-15800.150156,9.9e-05,2]
[348634694,1736692232500,-1084.42,9.967e-05,2]
[348634695,1736692232510,-500.0,9.967e-05,2]
[348634696,1736692232519,-781.28,9.967e-05,2]
[348634697,1736692232528,-1368.16,9.967e-05,2]
[348634698,1736692232538,-500.0,9.967e-05,2]
[348634699,1736692232547,-500.0,9.967e-05,2]
[348634700,1736692232557,-1228.27,9.967e-05,2]
[348634701,1736692232566,-2644.69,9.967e-05,2]
[348634702,1736692232576,-1783.09,9.967e-05,2]
[348634703,1736692232585,-500.0,9.967e-05,2]
[348634704,1736692232594,-1091.33,9.967e-05,2]
[348634705,1736692232604,-2582.76,9.967e-05,2]
[348634706,1736692232613,-500.0,9.967e-05,2]
[348634707,1736692232622,-1203.39,9.967e-05,2]
[348634708,1736692232631,-833.72,9.967e-05,2]
[348634709,1736692232640,-500.0,9.967e-05,2]
[348634710,1736692232649,-500.0,9.967e-05,2]
[348634711,1736692232658,-500.0,9.967e-05,2]
[348634712,1736692232667,-538.4,9.967e-05,2]
[348634713,1736692232676,-500.0,9.968e-05,2]
[348634751,1736692232685,-500.0,9.968e-05,2]
[348634754,1736692232902,-500.0,9.968e-05,2]
[348634757,1736692232911,-500.0,9.968e-05,2]
[348634760,1736692232921,-500.0,9.968e-05,2]
[348634763,1736692232930,-500.0,9.968e-05,2]
[348634766,1736692232939,-500.0,9.968e-05,2]
[348634769,1736692232948,-500.0,9.968e-05,2]
[348634772,1736692232958,-500.0,9.968e-05,2]
[348634775,1736692232966,-933.55,9.968e-05,2]
[348634778,1736692232976,-500.0,9.968e-05,2]
[348634781,1736692232985,-500.0,9.968e-05,2]
[348634784,1736692232994,-782.16,9.968e-05,2]
[348634787,1736692233003,-500.0,9.968e-05,2]
[348634790,1736692233013,-500.0,9.968e-05,2]
[348634793,1736692233023,-500.0,9.968e-05,2]
[348634796,1736692233032,-500.0,9.968e-05,2]
[348634799,1736692233042,-500.0,9.968e-05,2]
[348634802,1736692233052,-500.0,9.968e-05,2]
[348634805,1736692233061,-618.47,9.968e-05,2]
[348634808,1736692233071,-500.0,9.968e-05,2]
[348634811,1736692233080,-532.03,9.968e-05,2]
[348634814,1736692233090,-500.0,9.968e-05,2]
[348634817,1736692233099,-500.0,9.968e-05,2]
[348634820,1736692233109,-500.0,9.968e-05,2]
[348634823,1736692233119,-500.0,9.968e-05,2]
[348634826,1736692233129,-500.0,9.968e-05,2]
[348634828,1736692233139,-500.0,9.968e-05,2]
[348634830,1736692233148,-842.52,9.968e-05,2]
[348634833,1736692233158,-642.83,9.968e-05,2]
[348634835,1736692233167,-576.53,9.968e-05,2]
[348634838,1736692233176,-500.0,9.968e-05,2]
[348634841,1736692233185,-654.66,9.968e-05,2]
[348634844,1736692233195,-500.0,9.968e-05,2]
[348634846,1736692233204,-650.82,9.968e-05,2]
[348634848,1736692233213,-500.0,9.968e-05,2]
[348634850,1736692233222,-500.0,9.968e-05,2]
[348634852,1736692233231,-500.0,9.968e-05,2]
[348634854,1736692233240,-500.0,9.968e-05,2]
[348634856,1736692233250,-500.0,9.968e-05,2]
[348634858,1736692233259,-500.0,9.968e-05,2]
[348634860,1736692233268,-500.0,9.968e-05,2]
[348634862,1736692233278,-500.0,9.968e-05,2]
[348634864,1736692233287,-500.0,9.968e-05,2]
[348634866,1736692233296,-500.0,9.968e-05,2]
[348634868,1736692233306,-500.0,9.968e-05,2]
[348634870,1736692233315,-517.73,9.968e-05,2]
[348634872,1736692233326,-500.0,9.968e-05,2]
[348634874,1736692233336,-677.22,9.968e-05,2]
[348634876,1736692233346,-500.0,9.968e-05,2]
[348634878,1736692233356,-500.0,9.968e-05,2]
[348634880,1736692233365,-500.0,9.968e-05,2]
[348634882,1736692233375,-500.0,9.968e-05,2]
[348634883,1736692233384,-500.0,9.968e-05,2]
[348634886,1736692233394,-703.53,9.968e-05,2]
[348634887,1736692233404,-500.0,9.968e-05,2]
[348634889,1736692233413,-588.6,9.968e-05,2]
[348634891,1736692233423,-500.0,9.968e-05,2]
[348634893,1736692233432,-500.0,9.968e-05,2]
[348634895,1736692233441,-500.0,9.968e-05,2]
[348634897,1736692233451,-500.0,9.968e-05,2]
[348634899,1736692233460,-500.0,9.968e-05,2]
[348634902,1736692233470,-500.0,9.968e-05,2]
[348634904,1736692233480,-500.0,9.968e-05,2]
[348634906,1736692233489,-500.0,9.968e-05,2]
[348634908,1736692233499,-500.0,9.968e-05,2]
[348634909,1736692233508,-500.0,9.968e-05,2]
[348634912,1736692233518,-500.0,9.968e-05,2]
[348634914,1736692233527,-500.0,9.968e-05,2]
[348634915,1736692233536,-500.0,9.968e-05,2]
[348634917,1736692233546,-500.0,9.968e-05,2]
[348634920,1736692233556,-500.0,9.968e-05,2]
[348634921,1736692233566,-500.0,9.968e-05,2]
[348634924,1736692233576,-500.0,9.968e-05,2]
[348634925,1736692233585,-774.79,9.968e-05,2]
[348634927,1736692233595,-500.0,9.968e-05,2]
[348634929,1736692233604,-500.0,9.968e-05,2]
[348634931,1736692233613,-500.0,9.968e-05,2]
[348634933,1736692233623,-619.67,9.968e-05,2]
[348634935,1736692233632,-519.5,9.968e-05,2]
[348634937,1736692233642,-528.47,9.968e-05,2]
[348634939,1736692233651,-500.0,9.968e-05,2]
[348634941,1736692233660,-703.2,9.968e-05,2]
[348634943,1736692233669,-500.0,9.968e-05,2]
[348634945,1736692233678,-589.71,9.968e-05,2]
[348634947,1736692233687,-500.0,9.968e-05,2]
[348634949,1736692233697,-706.68,9.968e-05,2]
[348634951,1736692233706,-426.11403526,9.968e-05,2]
[348634953,1736692233715,-500.0,9.968e-05,2]
[348634955,1736692233724,-500.0,9.968e-05,2]
[348634957,1736692233733,-500.0,9.968e-05,2]
[348634959,1736692233742,-552.29,9.968e-05,2]
[348634961,1736692233751,-500.0,9.968e-05,2]
[348634963,1736692233762,-500.0,9.968e-05,2]
[348634965,1736692233771,-500.0,9.968e-05,2]
[348634967,1736692233780,-500.0,9.968e-05,2]
[348634969,1736692233790,-500.0,9.968e-05,2]
[348634971,1736692233799,-1029.91,9.968e-05,2]
[348634973,1736692233808,-738.05,9.968e-05,2]
[348634975,1736692233818,-500.0,9.968e-05,2]
[348634977,1736692233827,-500.0,9.968e-05,2]
[348634979,1736692233837,-500.0,9.968e-05,2]
[348634981,1736692233846,-676.08,9.968e-05,2]
[348634983,1736692233855,-500.0,9.968e-05,2]
[348634985,1736692233865,-2479.24,9.968e-05,2]
[348634987,1736692233874,-624.09,9.968e-05,2]
[348634989,1736692233883,-500.0,9.968e-05,2]
[348634991,1736692233892,-614.73,9.968e-05,2]
[348634993,1736692233902,-500.0,9.968e-05,2]
[348634995,1736692233912,-983.84,9.968e-05,2]
[348634997,1736692233921,-500.0,9.968e-05,2]
[348634999,1736692233930,-500.0,9.968e-05,2]
[348635001,1736692233939,-706.59,9.968e-05,2]
[348635003,1736692233949,-500.0,9.968e-05,2]
[348635005,1736692233958,-678.97,9.968e-05,2]
[348635007,1736692233967,-500.0,9.968e-05,2]
[348635009,1736692233976,-500.0,9.968e-05,2]
[348635011,1736692233985,-500.0,9.968e-05,2]
[348635013,1736692233995,-584.38,9.968e-05,2]
[348635015,1736692234004,-500.0,9.968e-05,2]
[348635017,1736692234014,-669.75,9.968e-05,2]
[348635019,1736692234023,-690.62,9.968e-05,2]
[348635021,1736692234032,-500.0,9.968e-05,2]
[348635023,1736692234041,-552.71,9.968e-05,2]
[348635025,1736692234050,-500.0,9.968e-05,2]
[348635026,1736692234059,-500.0,9.968e-05,2]
[348635027,1736692234068,-500.0,9.968e-05,2]
[348635028,1736692234077,-500.0,9.968e-05,2]
[348635029,1736692234087,-500.0,9.968e-05,2]
[348635030,1736692234096,-1495.61,9.968e-05,2]
[348635031,1736692234106,-500.0,9.968e-05,2]
[348635032,1736692234115,-500.0,9.968e-05,2]
[348635033,1736692234130,-707.93,9.968e-05,2]
[348635034,1736692234140,-507.77,9.968e-05,2]
[348635035,1736692234149,-868.3,9.968e-05,2]
[348635036,1736692234158,-1649.29,9.968e-05,2]
[348635037,1736692234169,-500.0,9.968e-05,2]
[348635039,1736692234178,-500.0,9.968e-05,2]
[348635041,1736692234187,-2186.94,9.968e-05,2]
[348635043,1736692234197,-500.0,9.968e-05,2]
[348635045,1736692234207,-500.0,9.968e-05,2]
[348635046,1736692234217,-500.0,9.968e-05,2]
[348635048,1736692234227,-874.46,9.968e-05,2]
[348635050,1736692234236,-458.34264845,9.968e-05,2]
[348635052,1736692234245,-806.2,9.968e-05,2]
[348635054,1736692234254,-500.0,9.968e-05,2]
[348635056,1736692234264,-500.0,9.968e-05,2]
[348635058,1736692234273,-1632.0,9.968e-05,2]
[348635059,1736692234282,-6552.05,9.968e-05,2]
[348635060,1736692234293,-500.0,9.968e-05,2]
[348635061,1736692234302,-500.0,9.968e-05,2]
[348635062,1736692234311,-739.55,9.968e-05,2]
[348635063,1736692234323,-500.0,9.968e-05,2]
[348635064,1736692234333,-500.0,9.968e-05,2]
[348635065,1736692234342,-500.0,9.968e-05,2]
[348635066,1736692234352,-500.0,9.968e-05,2]
[348635067,1736692234361,-500.0,9.968e-05,2]
[348635068,1736692234370,-750.25,9.968e-05,2]
[348635069,1736692234379,-500.0,9.968e-05,2]
[348635070,1736692234389,-508.28,9.968e-05,2]
[348635071,1736692234398,-687.59,9.968e-05,2]
[348635072,1736692234408,-500.0,9.968e-05,2]
[348635073,1736692234417,-500.0,9.968e-05,2]
[348635074,1736692234426,-1990.49,9.968e-05,2]
[348635075,1736692234435,-873.36,9.968e-05,2]
[348635076,1736692234445,-3717.78,9.968e-05,2]
[348635077,1736692234454,-1034.67,9.968e-05,2]
[348635078,1736692234464,-717.01,9.968e-05,2]
[348635079,1736692234473,-802.29,9.968e-05,2]
[348635080,1736692234482,-549.40614736,9.968e-05,2]
[348635081,1736692234491,-500.0,9.968e-05,2]
[348635082,1736692234500,-500.0,9.968e-05,2]
[348635083,1736692234510,-500.0,9.968e-05,2]
[348635084,1736692234520,-489.928817,9.968e-05,2]
[348635085,1736692234529,-627.98,9.968e-05,2]
[348635086,1736692234538,-1507.53,9.968e-05,2]
[348635087,1736692234547,-500.0,9.968e-05,2]
[348635088,1736692234556,-500.0,9.968e-05,2]
[348635089,1736692234565,-621.85,9.968e-05,2]
[348635090,1736692234575,-500.0,9.968e-05,2]
[348635091,1736692234584,-1703.14,9.968e-05,2]
[348635092,1736692234593,-500.0,9.968e-05,2]
[348635093,1736692234603,-2567.45,9.968e-05,2]
[348635094,1736692234612,-562.182771,9.968e-05,2]
[348635095,1736692234621,-532.2734262,9.968e-05,2]
[348635096,1736692234631,-1093.32,9.968e-05,2]
[348635097,1736692234640,-500.0,9.968e-05,2]
[348635098,1736692234649,-1093.73,9.968e-05,2]
[348635099,1736692234660,-633.39,9.968e-05,2]
[348635100,1736692234669,-500.0,9.968e-05,2]
[348635101,1736692234679,-530.56,9.968e-05,2]
[348635102,1736692234688,-500.0,9.968e-05,2]
[348635103,1736692234697,-626.52,9.968e-05,2]
[348635104,1736692234707,-500.0,9.968e-05,2]
[348635105,1736692234716,-817.59,9.968e-05,2]
[348635106,1736692234726,-1180.21,9.968e-05,2]
[348635107,1736692234735,-2545.63,9.968e-05,2]
[348635108,1736692234745,-2681.79,9.968e-05,2]
[348635109,1736692234754,-500.0,9.968e-05,2]
[348635110,1736692234763,-704.12,9.968e-05,2]
[348635111,1736692234773,-985.43,9.968e-05,2]
[348635112,1736692234782,-677.16,9.968e-05,2]
[348635113,1736692234791,-1827.27,9.968e-05,2]
[348635114,1736692234801,-500.0,9.968e-05,2]
[348635115,1736692234810,-500.0,9.968e-05,2]
[348635116,1736692234820,-500.0,9.968e-05,2]
[348635117,1736692234830,-1540.89,9.968e-05,2]
[348635118,1736692234839,-653.47,9.968e-05,2]
[348635119,1736692234849,-500.0,9.968e-05,2]
[348635120,1736692234859,-723.1,9.968e-05,2]
[348635121,1736692234868,-1377.42,9.968e-05,2]
[348635122,1736692234879,-500.0,9.968e-05,2]
[348635123,1736692234888,-500.0,9.968e-05,2]
[348635124,1736692234897,-500.0,9.968e-05,2]
[348635125,1736692234907,-538.4,9.968e-05,2]
[348635126,1736692234917,-500.0,9.969e-05,2]
[348635127,1736692234927,-500.0,9.969e-05,2]
[348635128,1736692234937,-500.0,9.969e-05,2]
[348635129,1736692234947,-500.0,9.969e-05,2]
[348635130,1736692234957,-507.1701761,9.969e-05,2]